bitfinex-derivatives/quotes_SOLF0:USTF0_20240820
["timestamp","ask_amount","ask_price","bid_price","bid_amount"]
[1724161213899,0.05288483,145.13,145.11,14.0242]
[1724161214097,10.58,145.19,145.11,10.58]
[1724161214285,2.751,145.24,145.14,10.58]
[1724161214488,10.58,145.2,145.14,10.58]
[1724161214691,3.4427,145.18,145.14,10.58]
[1724161214892,2.751,145.24,145.14,10.58]
[1724161215198,0.04948088,145.19,145.17,0.05028665]
[1724161215595,3.49208088,145.19,145.17,0.05028665]
[1724161218896,3.4426,145.18,145.17,0.05028665]
[1724161219098,0.04948088,145.19,145.17,0.05028665]
[1724161220204,0.04948088,145.19,145.18,10.58]
[1724161220402,10.58,145.25,145.18,10.58]
[1724161220711,10.58,145.26,145.18,10.58]
[1724161220898,10.58,145.26,145.2,10.58]
[1724161221199,1.3315,145.27,145.2,10.58]
[1724161221200,11.9115,145.27,145.2,10.58]
[1724161221509,10.58,145.26,145.19,10.58]
[1724161221803,3.4414,145.24,145.22,0.05091235]
[1724161223109,3.4414,145.23,145.22,0.05091235]
[1724161225295,14.0212,145.24,145.22,0.05091235]
[1724161225702,3.4412,145.24,145.22,0.05091235]
[1724161226307,3.49118254,145.25,145.22,0.05091235]
[1724161228604,0.05018254,145.25,145.22,0.05091235]
[1724161229197,0.05018254,145.25,145.22,10.63091235]
[1724161230915,3.37167876,145.34,145.22,10.63091235]
[1724161231122,10.58,145.3,145.23,10.58]
[1724161231420,3.4402,145.29,145.23,10.58]
[1724161231901,3.4402,145.29,145.23,14.0215]
[1724161232102,0.04710027,145.27,145.25,0.05141063]
[1724161233007,0.04710027,145.27,145.25,10.63141063]
[1724161233506,0.04710027,145.27,145.25,0.05141063]
[1724161235614,0.04710027,145.27,145.25,10.63141063]
[1724161237306,0.04710027,145.27,145.25,14.07241063]
[1724161238013,0.04710027,145.27,145.25,10.63141063]
[1724161240209,0.04710027,145.27,145.26,10.58]
[1724161241311,0.04710027,145.27,145.25,0.05141063]
[1724161243622,0.04710027,145.27,145.26,10.58]
[1724161247014,0.04710027,145.27,145.26,14.0208]
[1724161247217,1.2752,145.33,145.26,10.58]
[1724161247527,1.2752,145.33,145.3,10.58]
[1724161247817,1.2752,145.33,145.28,10.58]
[1724161248521,3.4855745,145.32,145.29,0.04900422]
[1724161249315,0.0461745,145.32,145.3,10.58]
[1724161250322,0.0461745,145.32,145.31,10.58]
[1724161251224,66.63248334,145.38,145.31,10.58]
[1724161251430,3.4384,145.37,145.33,10.58]
[1724161251621,66.63248334,145.38,145.33,10.58]
[1724161251923,3.4384,145.36,145.33,10.58]
[1724161252230,0.04760857,145.36,145.33,10.62422046]
[1724161252724,0.04760857,145.36,145.33,0.04422046]
[1724161253312,0.04760857,145.36,145.33,10.62422046]
[1724161254130,3.48620857,145.36,145.33,0.04422046]
[1724161255427,3.4387,145.35,145.33,0.04422046]
[1724161255928,3.4389,145.34,145.33,0.04422046]
[1724161257125,3.4395,145.32,145.28,10.58]
[1724161257527,10.58,145.34,145.28,10.58]
[1724161257925,10.58,145.31,145.22,1.3086]
[1724161258223,10.58,145.31,145.26,10.58]
[1724161258621,0.04526008,145.28,145.26,10.58]
[1724161260022,0.04526008,145.28,145.27,10.58]
[1724161260222,1.2667,145.35,145.27,21.16]
[1724161260427,10.58,145.34,145.28,10.58]
[1724161260622,3.4397,145.31,145.28,10.58]
[1724161260823,3.4397,145.31,145.27,10.58]
[1724161261131,0.04814053,145.3,145.28,0.04569428]
[1724161261523,0.04814053,145.3,145.28,10.62569428]
[1724161262429,0.04814053,145.3,145.29,10.58]
[1724161263827,1.2667,145.35,145.29,14.07351052]
[1724161264030,66.63248334,145.38,145.31,10.58]
[1724161264229,10.58,145.37,145.31,10.58]
[1724161265130,3.48842609,145.35,145.33,0.0440107]
[1724161267840,3.4389,145.34,145.33,0.0440107]
[1724161269436,3.48832609,145.35,145.33,0.0440107]
[1724161269842,0.04962609,145.35,145.33,0.0440107]
[1724161270043,0.04962609,145.35,145.33,10.6240107]
[1724161271139,0.04962609,145.35,145.34,10.58]
[1724161271645,3.438,145.38,145.34,10.58]
[1724161271944,3.4382,145.37,145.34,10.58]
[1724161272445,3.438,145.38,145.34,10.58]
[1724161272744,0.04683354,145.37,145.33,0.0440107]
[1724161272939,3.4376,145.4,145.37,10.58]
[1724161273140,3.48287585,145.4,145.37,10.6309859]
[1724161273737,3.4377,145.39,145.37,10.6309859]
[1724161274141,0.04527585,145.4,145.37,10.6309859]
[1724161274343,0.04527585,145.4,145.38,10.58]
[1724161275444,0.04527585,145.4,145.37,0.0509859]
[1724161275639,0.04527585,145.4,145.37,10.6309859]
[1724161277937,0.04527585,145.4,145.37,0.0509859]
[1724161278444,11.9303,145.48,145.39,10.58]
[1724161278745,1.3523,145.47,145.42,10.58]
[1724161279848,0.04852256,145.46,145.44,10.58]
[1724161280440,0.04852256,145.46,145.43,0.04914412]
[1724161282453,3.4364,145.45,145.43,0.04914412]
[1724161282650,0.04852256,145.46,145.43,0.04914412]
[1724161282853,3.4365,145.45,145.43,0.04914412]
[1724161283046,0.04852256,145.46,145.43,0.04914412]
[1724161283441,0.04852256,145.46,145.43,26.42914412]
[1724161284344,0.04852256,145.46,145.43,0.04914412]
[1724161284945,3.48472256,145.46,145.43,0.04914412]
[1724161285245,0.04852256,145.46,145.43,0.04914412]
[1724161287150,0.04852256,145.46,145.44,26.38]
[1724161288955,0.04852256,145.46,145.44,29.8163]
[1724161289655,1.3523,145.49,145.45,29.8163]
[1724161290457,1.2757,145.54,145.45,26.38]
[1724161290654,1.2804,145.53,145.45,26.38]
[1724161290846,0.05031324,145.51,145.48,0.04393394]
[1724161291560,3.4352,145.5,145.48,0.04393394]
[1724161291854,0.05031324,145.51,145.48,0.04393394]
[1724161292047,3.48531324,145.51,145.48,0.04393394]
[1724161292245,0.05031324,145.51,145.48,0.04393394]
[1724161294556,0.05031324,145.51,145.49,26.38]
[1724161295356,0.05031324,145.51,145.48,0.04393394]
[1724161305476,0.05031324,145.51,145.5,26.38]
[1724161306074,1.287,145.56,145.5,26.38]
[1724161306271,1.287,145.56,145.51,26.38]
[1724161306467,4.7209,145.56,145.51,26.38]
[1724161306767,1.3,145.58,145.51,26.38]
[1724161306961,1.3,145.58,145.54,26.38]
[1724161307166,0.05085393,145.56,145.54,26.38]
[1724161308375,0.05085393,145.56,145.55,3.434]
[1724161308560,1.2807,145.62,145.55,29.814]
[1724161308759,3.4326,145.61,145.55,29.814]
[1724161308968,1.2807,145.62,145.57,26.38]
[1724161309774,0.04682916,145.61,145.58,0.04887538]
[1724161311177,1.2954,145.66,145.59,26.38]
[1724161311469,23.80743557,145.74,145.63,26.38]
[1724161311470,43.18762703,145.73,145.63,26.38]
[1724161311663,46.66594399,145.73,145.63,26.38]
[1724161312169,16.80762703,145.73,145.61,26.38]
[1724161312372,16.80762703,145.73,145.67,26.38]
[1724161312760,16.80762703,145.73,145.68,26.38]
[1724161312964,12.71720123,145.69,145.68,26.38]
[1724161314370,16.80762703,145.73,145.68,26.38]
[1724161314570,16.80762703,145.73,145.68,29.8109]
[1724161314973,16.80762703,145.73,145.68,26.38]
[1724161315571,16.80762703,145.73,145.68,29.77099773]
[1724161315977,13.01192898,145.7,145.69,3.4307]
[1724161316477,13.01192898,145.7,145.68,26.38]
[1724161316678,13.01192898,145.7,145.67,26.38]
[1724161316879,13.01192898,145.7,145.68,0.04368262]
[1724161317181,13.01192898,145.7,145.68,29.85438262]
[1724161317391,13.01192898,145.7,145.68,0.04368262]
[1724161317873,13.01192898,145.7,145.68,26.42368262]
[1724161318670,13.01192898,145.7,145.69,3.4307]
[1724161319870,6.76202898,145.7,145.69,3.4307]
[1724161320076,19.71870223,145.72,145.69,3.4307]
[1724161320278,19.71870223,145.72,145.7,29.8104]
[1724161320877,19.71870223,145.72,145.7,26.38]
[1724161321974,16.80762703,145.73,145.7,26.38]
[1724161322281,16.80762703,145.73,145.72,26.38]
[1724161322481,18.52956994,145.75,145.72,26.38]
[1724161322682,18.52956994,145.75,145.74,26.38]
[1724161323586,18.52956994,145.75,145.73,3.4295]
[1724161323877,18.52956994,145.75,145.72,0.0507286]
[1724161325082,21.95886994,145.75,145.72,0.0507286]
[1724161325486,18.52956994,145.75,145.72,26.4307286]
[1724161325676,18.52956994,145.75,145.73,3.46751032]
[1724161325986,18.52956994,145.75,145.74,26.38]
[1724161327088,18.52956994,145.75,145.72,26.4307286]
[1724161327488,18.52956994,145.75,145.72,0.0507286]
[1724161327687,3.4295,145.74,145.72,0.0507286]
[1724161327983,18.52956994,145.75,145.72,0.0507286]
[1724161328682,18.52956994,145.75,145.72,26.4307286]
[1724161328873,18.52956994,145.75,145.72,29.8607286]
[1724161329493,21.95886994,145.75,145.72,26.4307286]
[1724161329673,18.52956994,145.75,145.72,0.0507286]
[1724161330079,18.52956994,145.75,145.74,26.38]
[1724161330784,30.0931059,145.76,145.74,26.38]
[1724161331282,31.70705515,145.78,145.74,26.38]
[1724161331481,24.77472151,145.79,145.73,3.38033456]
[1724161331482,24.77472151,145.79,145.77,26.38]
[1724161331679,24.77472151,145.79,145.78,3.4285]
[1724161331878,24.77472151,145.79,145.77,29.88075413]
[1724161332588,48.04873015,145.82,145.77,29.88075413]
[1724161332787,48.04873015,145.82,145.8,26.38]
[1724161332983,28.3960304,145.84,145.8,26.38]
[1724161333281,28.3960304,145.84,145.83,3.4274]
[1724161333491,32.01565249,145.86,145.83,26.38]
[1724161333678,42.63087624,145.85,145.84,26.38]
[1724161333879,33.69087487,145.88,145.84,26.38]
[1724161334075,33.69087487,145.88,145.83,27.42]
[1724161334283,3.99054348,145.87,145.86,26.38]
[1724161334585,56.98563473,145.89,145.86,26.38]
[1724161334789,34.89863473,145.89,145.88,26.38]
[1724161335085,16.46656888,145.91,145.88,26.38]
[1724161335287,16.46656888,145.91,145.9,26.38]
[1724161335690,16.46656888,145.91,145.89,3.4259]
[1724161335988,16.46656888,145.91,145.9,3.3710549]
[1724161336291,16.46656888,145.91,145.89,29.8059]
[1724161336484,16.46656888,145.91,145.9,32.88]
[1724161336684,32.88,146.02,145.9,36.3056]
[1724161336890,32.88,146.02,145.92,32.88]
[1724161337085,3.424,145.98,145.89,36.2994363]
[1724161337285,32.88,145.98,145.89,0.05077951]
[1724161337486,2.7507,145.94,145.89,0.05077951]
[1724161337685,6.1755,145.94,145.89,0.05077951]
[1724161337886,1.379,145.94,145.89,0.05077951]
[1724161338084,3.4255,145.91,145.89,0.05077951]
[1724161338284,1.379,145.94,145.89,0.05077951]
[1724161338485,34.259,145.94,145.85,3.47727145]
[1724161338687,1.379,145.94,145.85,3.47727145]
[1724161339296,1.379,145.94,145.86,32.88]
[1724161339786,1.379,145.94,145.92,32.88]
[1724161340184,1.384,145.96,145.9,32.88]
[1724161340380,2.7258,145.96,145.9,32.88]
[1724161340585,3.4248,145.94,145.88,3.52136998]
[1724161340896,0.04768374,145.94,145.88,3.4739815]
[1724161341580,0.04768374,145.94,145.87,32.88]
[1724161341781,0.04768374,145.94,145.91,3.4255]
[1724161341977,0.04768374,145.94,145.92,32.88]
[1724161342380,2.7258,145.96,145.92,32.88]
[1724161342789,2.7258,145.96,145.92,36.31220881]
[1724161343088,0.04538943,145.94,145.92,39.73740881]
[1724161343589,0.04538943,145.94,145.92,36.3052]
[1724161343590,30.97466029,145.93,145.92,36.3052]
[1724161343892,0.04538943,145.94,145.92,32.88]
[1724161344085,0.04538943,145.94,145.93,3.44530306]
[1724161344286,0.04538943,145.94,145.92,32.88]
[1724161344488,0.04538943,145.94,145.93,6.89084138]
[1724161344695,0.04538943,145.94,145.93,6.87235689]
[1724161344989,3.8759,146.02,145.93,3.44735689]
[1724161345188,3.8759,146.02,145.94,32.88]
[1724161345891,3.8759,146.02,145.97,32.88]
[1724161346300,4.9380973,146.06,145.97,32.88]
[1724161346802,4.9380973,146.06,146.01,3.423]
[1724161347192,4.9380973,146.06,146.0,32.92555467]
[1724161347402,4.9380973,146.06,146.0,0.04555467]
[1724161347594,37.8180973,146.06,146.0,0.04555467]
[1724161347800,3.4228,146.03,146.0,0.04555467]
[1724161347986,2.5833,146.02,146.0,0.04555467]
[1724161349196,3.4224,146.04,146.0,0.04555467]
[1724161349399,8.3600973,146.06,146.01,3.4231]
[1724161349594,8.3600973,146.06,146.0,32.92555467]
[1724161349595,4.9380973,146.06,146.0,32.92555467]
[1724161349800,4.9380973,146.06,146.03,3.4226]
[1724161350298,4.9380973,146.06,146.02,32.88]
[1724161350592,4.9380973,146.06,146.04,3.4222]
[1724161350801,4.9380973,146.06,146.02,32.88]
[1724161351191,4.9380973,146.06,146.02,36.27701129]
[1724161351387,4.9380973,146.06,146.04,3.47145632]
[1724161351792,4.9380973,146.06,146.04,0.04925632]
[1724161352292,4.9380973,146.06,146.05,3.4222]
[1724161352490,4.7605,146.11,146.04,0.04925632]
[1724161352491,7.66437648,146.13,146.04,32.92925632]
[1724161352689,7.66437648,146.13,146.07,32.88]
[1724161353000,7.66437648,146.13,146.07,32.9280647]
[1724161353500,7.66437648,146.13,146.07,36.32287687]
[1724161354103,7.66437648,146.13,146.07,0.0480647]
[1724161354492,3.4212,146.1,146.07,0.0480647]
[1724161354700,40.54437648,146.13,146.07,0.0480647]
[1724161354908,7.66437648,146.13,146.07,0.0480647]
[1724161355306,40.54437648,146.13,146.07,0.0480647]
[1724161355895,40.54437648,146.13,145.97,27.36]
[1724161355896,32.88,146.09,145.97,27.36]
[1724161356099,32.88,146.05,145.87,27.36]
[1724161356301,2.6817,146.04,145.96,32.88]
[1724161356996,2.6817,146.04,145.99,0.04770038]
[1724161357207,0.04986079,146.01,145.99,0.04770038]
[1724161357405,0.04986079,146.01,145.94,32.88]
[1724161357902,3.4235,146.0,145.95,3.4245]
[1724161358710,0.04986079,146.01,145.92,36.31454237]
[1724161359010,3.4243,145.97,145.96,0.04337971]
[1724161359217,2.6817,146.04,145.88,32.88]
[1724161359218,32.88,145.99,145.88,32.88]
[1724161359506,32.88,145.97,145.88,32.88]
[1724161359697,32.88,145.97,145.84,32.88]
[1724161359900,32.88,145.94,145.84,32.88]
[1724161360705,32.88,145.94,145.8,3.4078517]
[1724161360706,32.88,145.92,145.8,36.2878517]
[1724161360912,0.04856663,145.9,145.88,0.05044287]
[1724161361210,0.04856663,145.9,145.8,32.88]
[1724161361211,32.92856663,145.9,145.8,32.88]
[1724161361915,32.88,145.88,145.78,32.88]
[1724161362211,1.2534,145.91,145.7,32.88]
[1724161362212,32.88,145.85,145.75,32.88]
[1724161362399,1.2534,145.91,145.75,32.88]
[1724161362603,32.88,145.88,145.78,32.88]
[1724161362907,0.05217699,145.84,145.82,0.05224515]
[1724161363113,0.05217699,145.84,145.76,32.88]
[1724161363501,32.88,145.83,145.74,32.88]
[1724161363702,32.88,145.83,145.72,32.88]
[1724161363916,36.3082,145.81,145.72,36.31]
[1724161364107,32.88,145.81,145.72,32.88]
[1724161364306,32.88,145.81,145.7,32.88]
[1724161364505,3.429,145.78,145.7,36.3104]
[1724161364813,1.313,145.8,145.72,32.88]
[1724161365017,1.313,145.8,145.73,3.4299]
[1724161365314,0.045681,145.78,145.75,0.04566266]
[1724161366304,1.2718,145.79,145.73,3.4298]
[1724161366508,1.2718,145.79,145.72,32.88]
[1724161366718,32.88,145.86,145.78,3.4286]
[1724161366918,35.4927,145.88,145.76,32.88]
[1724161367415,0.04996144,145.78,145.75,0.0474617]
[1724161367816,32.88,145.85,145.76,3.4292]
[1724161368015,32.88,145.85,145.72,36.25393278]
[1724161368210,1.3485,145.84,145.75,32.88]
[1724161368413,1.3485,145.84,145.78,32.88]
[1724161368719,1.3485,145.84,145.79,0.04477563]
[1724161369512,0.04405043,145.82,145.8,3.428]
[1724161369722,0.04405043,145.82,145.79,0.04477563]
[1724161370114,0.04405043,145.82,145.81,3.428]
[1724161370813,0.04405043,145.82,145.79,0.04477563]
[1724161372314,3.47185043,145.82,145.79,0.04477563]
[1724161372516,0.04405043,145.82,145.81,3.428]
[1724161372715,0.04405043,145.82,145.79,0.04477563]
[1724161373815,3.47185043,145.82,145.79,0.04477563]
[1724161374021,0.04405043,145.82,145.79,0.04477563]
[1724161376017,3.428,145.81,145.79,0.04477563]
[1724161376721,0.04405043,145.82,145.79,0.04477563]
[1724161377728,0.04405043,145.82,145.72,32.88]
[1724161378317,34.2285,145.84,145.72,36.37921678]
[1724161378709,34.2285,145.84,145.78,3.4287]
[1724161378710,3.428,145.82,145.78,3.4287]
[1724161379619,0.05026781,145.79,145.78,3.4287]
[1724161380817,32.88,145.86,145.77,0.04505791]
[1724161381126,0.04933419,145.8,145.77,0.04505791]
[1724161381329,32.88,145.83,145.72,32.88]
[1724161381529,32.88,145.81,145.72,32.88]
[1724161381719,0.05247806,145.8,145.72,32.88]
[1724161382032,32.88,145.79,145.7,32.88]
[1724161382325,3.4292,145.76,145.72,3.43]
[1724161382516,3.4292,145.76,145.7,32.88]
[1724161382716,32.88,145.77,145.68,32.88]
[1724161382924,3.4301,145.73,145.72,0.0452886]
[1724161383128,0.0463891,145.74,145.72,0.0452886]
[1724161384514,3.4299,145.73,145.72,0.0452886]
[1724161385930,3.4302,145.72,145.68,3.4311]
[1724161386227,0.0463891,145.74,145.66,27.4]
[1724161386531,3.4301,145.73,145.68,3.431]
[1724161386728,32.88,145.76,145.68,3.431]
[1724161386921,32.88,145.76,145.66,27.4]
[1724161387225,0.04492138,145.73,145.71,0.04827465]
[1724161387625,3.4303,145.72,145.71,0.04827465]
[1724161387822,3.4303,145.72,145.67,3.4312]
[1724161388226,3.4304,145.71,145.67,3.4312]
[1724161388427,0.04492138,145.73,145.67,3.4312]
[1724161388731,0.04492138,145.73,145.68,32.88]
[1724161389222,0.04492138,145.73,145.72,3.4302]
[1724161390022,0.04492138,145.73,145.69,0.05220453]
[1724161390622,0.04492138,145.73,145.7,3.4305]
[1724161390830,0.04492138,145.73,145.69,0.05220453]
[1724161391032,3.47492138,145.73,145.69,3.48290453]
[1724161391230,0.04492138,145.73,145.69,0.05220453]
[1724161392333,0.04492138,145.73,145.7,3.4305]
[1724161392535,0.04492138,145.73,145.69,0.05220453]
[1724161392921,0.04492138,145.73,145.71,3.4304]
[1724161393321,0.04492138,145.73,145.69,0.05220453]
[1724161393525,0.04492138,145.73,145.71,3.4304]
[1724161394426,0.04492138,145.73,145.7,3.4306]
[1724161394836,0.04492138,145.73,145.69,0.05220453]
[1724161395031,0.04492138,145.73,145.71,3.4304]
[1724161395337,0.04492138,145.73,145.69,0.05220453]
[1724161395834,3.47492138,145.73,145.69,0.05220453]
[1724161396036,32.88,145.7,145.56,27.42]
[1724161396233,32.88,145.68,145.57,32.9743]
[1724161396434,3.4314,145.67,145.57,36.36195523]
[1724161396742,3.4314,145.67,145.63,3.4322]
[1724161396932,3.4314,145.67,145.57,36.36195523]
[1724161397236,0.04691424,145.63,145.62,3.4326]
[1724161397440,0.047716,145.64,145.61,0.04621041]
[1724161399638,3.4323,145.63,145.61,0.04621041]
[1724161399828,0.047716,145.64,145.61,0.04621041]
[1724161402129,3.4323,145.63,145.61,0.04621041]
[1724161402445,0.047716,145.64,145.61,0.04621041]
[1724161402641,3.4326,145.62,145.56,27.42]
[1724161402832,32.88,145.65,145.57,3.4337]
[1724161403030,1.3668,145.68,145.57,32.88]
[1724161403436,3.4319,145.65,145.57,32.88]
[1724161403734,0.04341777,145.62,145.6,0.04445499]
[1724161403936,0.04714246,145.62,145.6,0.04445499]
[1724161405738,3.47974246,145.62,145.6,0.04445499]
[1724161405951,0.04714246,145.62,145.6,0.04445499]
[1724161407343,3.47974246,145.62,145.6,0.04445499]
[1724161407946,3.4328,145.61,145.6,0.04445499]
[1724161408242,32.92714246,145.62,145.52,32.9744]
[1724161408444,3.4331,145.6,145.55,3.434]
[1724161408837,1.3823,145.59,145.48,36.30286025]
[1724161409044,32.88,145.62,145.52,32.88]
[1724161409045,1.3235,145.61,145.52,32.88]
[1724161409547,4.7564,145.61,145.52,32.88]
[1724161409743,0.0457883,145.55,145.52,32.92814606]
[1724161409945,0.0457883,145.55,145.52,0.04814606]
[1724161410243,0.0457883,145.55,145.54,3.4345]
[1724161410445,1.3235,145.61,145.5,32.88]
[1724161410853,2.7058,145.61,145.5,32.88]
[1724161411147,0.04526763,145.56,145.54,32.88]
[1724161411338,0.04526763,145.56,145.55,6.93300593]
[1724161411537,1.2781,145.63,145.54,32.88]
[1724161411953,1.253,145.62,145.54,32.88]
[1724161412147,1.253,145.62,145.52,0.0945]
[1724161412544,0.04670609,145.58,145.56,3.48386169]
[1724161413037,0.04670609,145.58,145.56,0.05006169]
[1724161413352,0.04670609,145.58,145.57,3.4338]
[1724161414656,32.88,145.67,145.56,32.93006169]
[1724161414855,32.88,145.67,145.58,32.88]
[1724161415549,32.88,145.67,145.59,3.35910895]
[1724161415856,0.05186491,145.64,145.61,3.48309228]
[1724161416848,0.05186491,145.64,145.61,0.05049228]
[1724161417356,32.88,145.63,145.52,0.0945]
[1724161417555,3.4326,145.62,145.57,3.4336]
[1724161418153,32.88,145.63,145.56,3.4339]
[1724161418349,1.2803,145.62,145.52,0.0945]
[1724161418658,3.47899233,145.61,145.58,0.04954405]
[1724161419571,32.92599233,145.61,145.58,0.04954405]
[1724161420250,34.25679233,145.61,145.58,0.04954405]
[1724161420557,3.4338,145.57,145.48,33.0649]
[1724161420751,32.88,145.59,145.48,32.88]
[1724161421447,3.4341,145.56,145.52,3.4348]
[1724161421650,0.0507442,145.55,145.52,3.48616535]
[1724161422251,0.0507442,145.55,145.54,3.4344]
[1724161422546,0.0507442,145.55,145.52,0.05136535]
[1724161423463,3.4346,145.54,145.52,0.05136535]
[1724161423855,0.0507442,145.55,145.52,0.05136535]
[1724161424054,3.4346,145.54,145.52,0.05136535]
[1724161424465,3.4347,145.53,145.52,0.05136535]
[1724161425165,3.4352,145.52,145.47,27.44]
[1724161425365,35.4666,145.54,145.44,36.35742634]
[1724161425763,35.4666,145.54,145.46,3.4363]
[1724161426169,0.0495711,145.51,145.49,0.05064143]
[1724161426364,3.4354,145.5,145.49,0.05064143]
[1724161429064,0.0495711,145.51,145.49,0.05064143]
[1724161429265,0.0495711,145.51,145.49,3.48614143]
[1724161429467,0.0495711,145.51,145.49,0.05064143]
[1724161430969,1.3605,145.56,145.49,0.05064143]
[1724161431163,32.88,145.59,145.49,0.05064143]
[1724161431365,3.4344,145.55,145.5,3.4353]
[1724161431566,32.88,145.57,145.47,32.88]
[1724161431868,3.4351,145.52,145.47,3.436]
[1724161432059,0.04941546,145.51,145.48,0.04958829]
[1724161432465,0.04941546,145.51,145.48,3.48528829]
[1724161432770,0.04941546,145.51,145.48,0.04958829]
[1724161433355,0.04941546,145.51,145.49,3.4355]
[1724161434160,0.04941546,145.51,145.48,0.04958829]
[1724161434161,0.04941546,145.51,145.5,3.4355]
[1724161437373,0.04941546,145.51,145.48,0.04958829]
[1724161438474,0.04941546,145.51,145.49,3.4357]
[1724161439578,3.48461546,145.51,145.48,3.48538829]
[1724161439772,0.04941546,145.51,145.48,0.04958829]
[1724161440779,0.04941546,145.51,145.48,3.48538829]
[1724161440981,0.04941546,145.51,145.48,0.04958829]
[1724161441166,0.04941546,145.51,145.5,3.4355]
[1724161441576,0.04941546,145.51,145.48,0.04958829]
[1724161442766,0.04941546,145.51,145.48,3.48538829]
[1724161443880,0.04941546,145.51,145.48,0.04958829]
[1724161444977,32.88,145.5,145.39,32.88]
[1724161445181,32.88,145.5,145.4,3.39278382]
[1724161445368,3.4363,145.47,145.43,3.437]
[1724161445576,3.4363,145.47,145.43,3.51059358]
[1724161445776,0.04912339,145.46,145.39,32.88]
[1724161445978,3.4367,145.45,145.37,33.2634]
[1724161446681,3.4369,145.44,145.37,33.2634]
[1724161446982,32.88,145.46,145.35,32.88]
[1724161447278,32.88,145.46,145.38,3.4381]
[1724161447481,32.88,145.46,145.35,32.88]
[1724161447679,0.05180237,145.42,145.35,32.88]
[1724161447882,0.05180237,145.42,145.38,3.4381]
[1724161448487,3.48930237,145.42,145.38,3.4381]
[1724161449477,0.05180237,145.42,145.35,32.88]
[1724161449783,0.05180237,145.42,145.33,257.88]
[1724161449784,32.93180237,145.42,145.33,257.88]
[1724161449989,32.88,145.42,145.32,3.37284342]
[1724161450186,0.04821847,145.39,145.32,3.50059287]
[1724161450481,0.04821847,145.39,145.29,27.46]
[1724161450482,3.4384,145.38,145.33,3.4393]
[1724161450679,0.04938824,145.37,145.33,3.4393]
[1724161450880,0.04938824,145.37,145.3,32.88]
[1724161451079,3.48808824,145.37,145.33,3.4394]
[1724161451382,0.04938824,145.37,145.3,32.88]
[1724161451691,0.04938824,145.37,145.35,32.88]
[1724161452685,0.04938824,145.37,145.36,3.4388]
[1724161455281,32.88,145.46,145.37,3.45708962]
[1724161455482,2.5768,145.47,145.37,32.88]
[1724161455783,2.5768,145.47,145.41,3.4374]
[1724161456184,0.04379332,145.45,145.43,0.04404927]
[1724161457083,0.04379332,145.45,145.43,3.48104927]
[1724161457482,0.04379332,145.45,145.43,0.04404927]
[1724161458188,0.04379332,145.45,145.44,3.4369]
[1724161460198,3.4352,145.51,145.47,3.436]
[1724161460886,3.4352,145.51,145.46,3.4364]
[1724161461694,0.05008465,145.5,145.47,0.04339931]
[1724161464297,32.88,145.59,145.48,32.88]
[1724161464485,32.88,145.59,145.5,3.4354]
[1724161464685,32.88,145.59,145.48,32.88]
[1724161464895,32.88,145.57,145.46,32.88]
[1724161465093,32.88,145.57,145.49,3.4355]
[1724161465094,3.4347,145.54,145.49,3.4355]
[1724161465300,32.88,145.57,145.46,36.32990435]
[1724161465491,3.4344,145.55,145.46,36.32990435]
[1724161465690,0.05214109,145.53,145.5,3.48107523]
[1724161465991,0.05214109,145.53,145.5,0.04577523]
[1724161466891,0.05214109,145.53,145.5,3.48107523]
[1724161467088,0.05214109,145.53,145.5,0.04577523]
[1724161467504,0.05214109,145.53,145.52,3.435]
[1724161467787,0.05214109,145.53,145.5,0.04577523]
[1724161468203,3.48694109,145.53,145.5,0.04577523]
[1724161468399,0.05214109,145.53,145.5,0.04577523]
[1724161468694,0.05214109,145.53,145.51,3.4352]
[1724161469095,0.05214109,145.53,145.5,0.04577523]
[1724161469289,0.05214109,145.53,145.52,3.435]
[1724161469496,32.88,145.6,145.5,32.88]